bitfinex/quotes_SOLUSD_20230111
["timestamp","ask_amount","ask_price","bid_price","bid_amount"]
[1673478447758,45.73,16.406,16.391,65.77]
[1673478447917,65.72,16.409,16.4,25.41]
[1673478448102,20.0,16.41,16.4,25.41]
[1673478448337,20.0,16.41,16.4,126.77]
[1673478448530,65.71,16.412,16.4,126.77]
[1673478448531,20.0,16.412,16.4,126.77]
[1673478449578,20.0,16.418,16.4,126.77]
[1673478449579,20.0,16.418,16.401,78.68606065]
[1673478449921,117.8601,16.429,16.41,25.23]
[1673478450222,20.0,16.424,16.41,127.09]
[1673478450428,45.68,16.422,16.41,127.09]
[1673478450678,65.68,16.423,16.41,127.09]
[1673478451487,45.68,16.424,16.41,127.09]
[1673478451683,40.0,16.423,16.41,127.09]
[1673478451892,45.68,16.424,16.41,127.09]
[1673478452831,45.67,16.427,16.411,32.94606065]
[1673478453058,20.0,16.426,16.411,32.94606065]
[1673478453270,20.0,16.424,16.411,32.94606065]
[1673478453668,20.0,16.424,16.41,127.09]
[1673478454200,20.0,16.425,16.41,127.09]
[1673478454427,20.0,16.425,16.42,25.23]
[1673478455359,45.66,16.432,16.42,25.23]
[1673478455583,65.65,16.435,16.421,45.69]
[1673478455902,45.64,16.437,16.421,65.69]
[1673478456086,45.63,16.44,16.43,25.23]
[1673478456299,20.0,16.436,16.43,25.23]
[1673478456762,73.2613095,16.438,16.43,25.23]
[1673478456981,27.6213095,16.438,16.43,25.23]
[1673478458430,27.6213095,16.438,16.43,126.87]
[1673478458627,27.6213095,16.438,16.431,45.66]
[1673478459360,27.6213095,16.438,16.43,25.43]
[1673478459889,18.92,16.437,16.43,25.43]
[1673478460406,18.92,16.437,16.42,25.37]
[1673478460625,65.65,16.436,16.42,25.37]
[1673478460825,20.0,16.434,16.42,25.37]
[1673478461034,83.61,16.433,16.42,25.37]
[1673478461353,0.96,16.432,16.42,25.37]
[1673478461570,46.62,16.431,16.42,25.37]
[1673478461883,30.0,16.429,16.41,127.28]
[1673478462075,20.0,16.427,16.41,127.28]
[1673478462282,83.63,16.426,16.41,127.28]
[1673478462475,84.59,16.426,16.41,127.28]
[1673478462687,75.67,16.429,16.42,127.32]
[1673478462918,45.65,16.433,16.42,127.32]
[1673478463123,45.65,16.433,16.421,32.94606065]
[1673478463332,45.65,16.435,16.421,32.94606065]
[1673478463541,45.64,16.437,16.421,32.94606065]
[1673478463747,45.64,16.437,16.43,25.41]
[1673478464171,20.0,16.436,16.43,25.41]
[1673478464384,45.65,16.435,16.43,25.41]
[1673478464703,45.65,16.435,16.421,52.94606065]
[1673478464704,20.0,16.434,16.421,32.94606065]
[1673478464899,45.65,16.433,16.425,41.47823352]
[1673478465326,45.65,16.433,16.425,107.35324016]
[1673478466915,0.96,16.432,16.42,127.28]
[1673478467097,46.62,16.431,16.42,25.64]
[1673478467435,17.96,16.43,16.42,25.64]
[1673478467638,46.63,16.429,16.42,25.64]
[1673478467827,17.96,16.428,16.413,45.71]
[1673478468163,20.0,16.426,16.41,126.86]
[1673478468362,63.64,16.425,16.41,25.43]
[1673478468577,20.96,16.424,16.41,25.43]
[1673478468894,20.0,16.422,16.41,25.43]
[1673478469092,46.65,16.421,16.41,25.43]
[1673478469304,17.96,16.42,16.41,25.43]
[1673478469512,46.65,16.419,16.41,25.43]
[1673478469734,17.96,16.418,16.41,25.43]
[1673478469952,0.96,16.417,16.41,25.43]
[1673478470162,0.96,16.416,16.41,25.43]
[1673478471535,0.96,16.415,16.41,25.43]
[1673478471765,0.96,16.414,16.401,45.74]
[1673478471979,0.96,16.413,16.4,127.29]
[1673478472191,0.96,16.413,16.401,20.0]
[1673478472383,0.96,16.412,16.401,20.0]
[1673478472815,0.96,16.411,16.401,20.0]
[1673478473029,0.96,16.41,16.402,45.74]
[1673478473220,0.96,16.41,16.401,20.0]
[1673478473221,0.96,16.409,16.401,65.74]
[1673478473434,17.0,16.415,16.401,65.74]
[1673478473760,135.5983,16.423,16.401,65.74]
[1673478473979,65.68,16.422,16.41,23.57]
[1673478474499,20.0,16.429,16.411,45.72]
[1673478475115,45.67,16.428,16.411,45.72]
[1673478475322,20.0,16.427,16.411,45.72]
[1673478475536,45.67,16.426,16.411,45.72]
[1673478476183,20.0,16.425,16.411,45.72]
[1673478477639,45.67,16.426,16.411,45.72]
[1673478477854,17.96,16.425,16.411,45.72]
[1673478478065,0.96,16.424,16.411,20.0]
[1673478478277,0.96,16.424,16.41,117.95]
[1673478478492,0.96,16.424,16.411,65.72]
[1673478479444,17.0,16.425,16.411,65.72]
[1673478481013,20.0,16.424,16.411,65.72]
[1673478481231,18.92,16.423,16.411,20.0]
[1673478481418,17.0,16.423,16.412,45.71]
[1673478481964,17.0,16.423,16.411,20.0]
[1673478482791,1.92,16.422,16.411,65.72]
[1673478483207,1.92,16.422,16.411,20.0]
[1673478483842,1.92,16.422,16.41,117.95]
[1673478484043,1.92,16.422,16.41,23.36]
[1673478484044,45.69,16.421,16.41,23.36]
[1673478484268,45.69,16.421,16.4,94.65]
[1673478484269,17.96,16.42,16.401,45.74]
[1673478484470,65.69,16.419,16.401,45.74]
[1673478484686,17.96,16.418,16.401,45.74]
[1673478485006,46.66,16.417,16.401,45.74]
[1673478485223,46.66,16.417,16.4,118.09]
[1673478485224,1.1617512,16.415,16.4,23.69]
[1673478485534,1.1617512,16.413,16.4,23.69]
[1673478485727,21.1617512,16.411,16.4,23.69]
[1673478485935,45.72,16.41,16.4,23.69]
[1673478486158,0.96,16.409,16.4,23.69]
[1673478486569,0.96,16.408,16.4,23.69]
[1673478486790,0.96,16.407,16.4,23.69]
[1673478488056,45.71,16.412,16.4,23.69]
[1673478489009,20.0,16.411,16.4,23.69]
[1673478489410,1.92,16.41,16.4,23.69]
[1673478489612,18.92,16.41,16.4,23.69]
[1673478490054,64.64,16.41,16.4,23.69]
[1673478490473,18.92,16.41,16.4,23.69]
[1673478490685,1.92,16.41,16.4,23.69]
[1673478491011,18.92,16.41,16.4,23.69]
[1673478491418,20.0,16.408,16.4,23.69]
[1673478491611,20.0,16.408,16.392,45.77]
[1673478491612,64.65,16.407,16.392,45.77]
[1673478491820,20.0,16.406,16.391,159.1482]
[1673478492031,1.92,16.405,16.391,159.1482]
[1673478492359,64.65,16.407,16.4,23.6]
[1673478492360,45.73,16.407,16.4,23.6]
[1673478492559,1.92,16.406,16.4,23.6]
[1673478492979,20.0,16.42,16.4,118.03]
[1673478493189,130.315,16.418,16.4,118.03]
[1673478493409,20.0,16.417,16.401,20.0]
[1673478493731,65.7,16.416,16.4,118.03]
[1673478494130,45.7,16.416,16.4,118.03]
[1673478494337,20.0,16.43,16.41,118.0]
[1673478494551,209.6,16.43,16.41,118.31]
[1673478494762,45.68,16.423,16.41,118.31]
[1673478494992,20.0,16.423,16.41,23.72]
[1673478495198,45.68,16.422,16.41,23.72]
[1673478496448,45.68,16.422,16.41,117.79]
[1673478496657,45.68,16.424,16.411,20.0]
[1673478496887,45.67,16.426,16.412,45.71]
[1673478497089,45.67,16.428,16.411,65.72]
[1673478497726,20.0,16.427,16.411,65.72]
[1673478498046,45.67,16.426,16.411,65.72]
[1673478499081,40.0,16.425,16.411,45.72]
[1673478499418,64.6,16.424,16.41,117.79]
[1673478499733,20.0,16.423,16.41,23.41]
[1673478499926,254.2,16.422,16.41,23.41]
[1673478500354,20.0,16.421,16.41,23.41]
[1673478500562,20.0,16.419,16.401,113.0012]
[1673478500780,46.66,16.418,16.401,113.0012]
[1673478501097,20.0,16.417,16.401,113.0012]
[1673478501410,64.62,16.416,16.401,113.0012]
[1673478502153,64.62,16.416,16.4,117.81]
[1673478502979,47.62,16.416,16.401,20.0]
[1673478503310,1.92,16.416,16.401,20.0]
[1673478503503,1.92,16.416,16.41,23.39]
[1673478503711,45.68,16.423,16.41,23.39]
[1673478504137,45.67,16.426,16.411,65.72]
[1673478504463,45.67,16.428,16.412,20.0]
[1673478505291,45.67,16.428,16.413,45.71]
[1673478505824,45.67,16.428,16.412,45.71]
[1673478506557,20.0,16.427,16.41,117.46]
[1673478506761,52.25822,16.426,16.41,23.41]
[1673478506966,20.0,16.424,16.41,23.41]
[1673478507301,64.6,16.423,16.41,23.41]
[1673478507500,20.0,16.422,16.41,23.41]
[1673478507699,64.61,16.421,16.41,23.41]
[1673478508549,20.0,16.42,16.41,23.41]
[1673478508761,64.61,16.419,16.41,23.41]
[1673478509736,47.61,16.419,16.41,23.41]
[1673478510157,45.69,16.419,16.41,23.41]
[1673478510349,45.69,16.421,16.41,23.41]
[1673478511401,18.92,16.42,16.41,23.41]
[1673478511617,18.92,16.42,16.38,749.18843717]
[1673478511618,65.69,16.419,16.4,23.41]
[1673478511956,24.54822,16.418,16.4,23.41]
[1673478512143,189.6,16.416,16.4,23.41]
[1673478512354,84.62,16.415,16.4,23.41]
[1673478512567,20.0,16.414,16.4,23.41]
[1673478512784,63.67,16.413,16.4,23.41]
[1673478512997,20.0,16.412,16.4,23.41]
[1673478513318,64.64,16.411,16.4,23.41]
[1673478513507,20.0,16.41,16.4,23.41]
[1673478513712,47.64,16.409,16.4,23.41]
[1673478514159,37.0,16.408,16.4,23.41]
[1673478514350,1.92,16.407,16.4,23.41]
[1673478514557,1.92,16.407,16.395,38.78319265]
[1673478514772,47.65,16.407,16.39,163.85]
[1673478514982,17.0,16.406,16.39,163.85]
[1673478515191,1.92,16.405,16.39,163.85]
[1673478515612,1.92,16.405,16.391,20.0]
[1673478515831,1.92,16.405,16.392,45.77]
[1673478516580,1.92,16.405,16.391,45.77]
[1673478518565,45.73,16.407,16.391,45.77]
[1673478518783,20.0,16.408,16.391,45.77]
[1673478519091,45.72,16.409,16.392,20.0]
[1673478519282,45.72,16.409,16.393,45.77]
[1673478520148,45.72,16.409,16.391,45.77]
[1673478520149,20.0,16.407,16.391,45.77]
[1673478520354,18.92,16.406,16.39,163.85]
[1673478520757,64.65,16.406,16.39,163.85]
[1673478521183,20.0,16.405,16.39,163.85]
[1673478521394,18.92,16.404,16.39,163.85]
[1673478521805,45.72,16.409,16.39,163.85]
[1673478522018,45.72,16.409,16.391,20.0]
[1673478522247,45.72,16.409,16.392,45.77]
[1673478523083,17.0,16.408,16.392,45.77]
[1673478523278,37.0,16.408,16.391,45.77]
[1673478523621,20.0,16.407,16.391,45.77]
[1673478523815,17.0,16.406,16.391,45.77]
[1673478524246,0.96,16.405,16.391,45.77]
[1673478524459,1.92,16.405,16.391,45.77]
[1673478524985,1.92,16.405,16.392,20.0]
[1673478525295,45.73,16.407,16.393,45.77]
[1673478525693,45.72,16.409,16.393,45.77]
[1673478525905,45.72,16.411,16.394,20.0]
[1673478526228,45.72,16.411,16.395,45.76]
[1673478526981,45.72,16.411,16.393,45.77]
[1673478527292,20.0,16.41,16.393,45.77]
[1673478527603,45.72,16.409,16.393,45.77]
[1673478528224,18.92,16.408,16.393,45.77]
[1673478528444,1.92,16.408,16.393,45.77]
[1673478528770,18.92,16.408,16.391,45.77]
[1673478529080,45.73,16.407,16.391,40.77]
[1673478529287,18.92,16.406,16.391,40.77]
[1673478530114,18.92,16.406,16.39,23.68]
[1673478530323,18.92,16.406,16.391,20.0]
[1673478530653,45.73,16.405,16.391,20.0]
[1673478530866,18.92,16.404,16.391,20.0]
[1673478531175,20.0,16.403,16.391,20.0]
[1673478531395,1.92,16.402,16.391,20.0]
[1673478533050,1.92,16.402,16.392,45.77]
[1673478534769,1.92,16.402,16.391,65.77]
[1673478536971,20.0,16.406,16.391,65.77]
[1673478538234,18.92,16.405,16.391,65.77]
[1673478538421,65.73,16.404,16.387,110.0298]
[1673478538632,23.0817512,16.403,16.387,110.0298]
[1673478538855,45.74,16.402,16.387,110.0298]
[1673478539060,20.0,16.4,16.387,110.0298]
[1673478539261,47.8717512,16.399,16.387,110.0298]
[1673478539601,17.0,16.398,16.381,45.8]
[1673478539910,1.1617512,16.395,16.38,240.5575]
[1673478540094,1.1617512,16.393,16.38,240.5575]
[1673478540305,1.92,16.392,16.38,240.5575]
[1673478540528,1.92,16.392,16.38,126.89]
[1673478541365,1.92,16.392,16.381,45.8]
[1673478541706,0.96,16.392,16.381,45.8]
[1673478541895,0.96,16.391,16.381,45.8]
[1673478542222,45.76,16.395,16.38,126.89]
[1673478542542,0.99218889,16.395,16.381,45.8]
[1673478543789,0.96,16.394,16.381,45.8]
[1673478543999,0.99218889,16.393,16.381,45.8]
[1673478544213,0.96,16.392,16.381,45.8]
[1673478544406,45.74,16.401,16.381,45.8]
[1673478544613,45.74,16.401,16.382,17.0]
[1673478544823,20.0,16.41,16.39,126.8]
[1673478545037,20.0,16.41,16.391,65.77]
[1673478545466,45.72,16.409,16.391,65.77]
[1673478545688,20.0,16.408,16.391,181.7046]
[1673478546290,45.73,16.407,16.391,181.7046]
[1673478546970,20.0,16.408,16.391,181.7046]
[1673478547155,45.73,16.407,16.391,181.7046]
[1673478547366,45.72,16.411,16.391,181.7046]
[1673478547577,161.4803,16.413,16.4,25.28]
[1673478547788,161.4803,16.413,16.4,126.76]
[1673478547789,45.71,16.413,16.4,126.76]
[1673478547998,45.7,16.415,16.4,126.76]
[1673478548206,40.0,16.414,16.4,126.76]
[1673478549072,65.7,16.418,16.401,20.0]
[1673478549264,65.7,16.418,16.402,45.74]
[1673478549474,45.7,16.418,16.402,45.74]
[1673478550426,45.7,16.418,16.402,84.97732598]
[1673478551805,115.0553,16.419,16.402,84.97732598]
[1673478552018,20.0,16.418,16.402,84.97732598]
[1673478552230,1.92,16.417,16.402,84.97732598]
[1673478552634,45.69,16.42,16.402,84.97732598]
[1673478552853,45.69,16.42,16.403,17.0]
[1673478553066,45.69,16.42,16.41,25.34]
[1673478553926,45.69,16.42,16.41,64.57732598]
[1673478554215,45.69,16.42,16.41,25.34]
[1673478554427,65.68,16.422,16.41,25.34]
[1673478554645,0.96,16.421,16.41,25.34]
[1673478554852,0.96,16.42,16.41,25.34]
[1673478555066,0.96,16.419,16.41,25.34]
[1673478555270,0.96,16.418,16.41,25.34]
[1673478555482,45.68,16.422,16.41,25.34]
[1673478555802,45.68,16.422,16.41,64.57732598]
[1673478555994,45.68,16.422,16.411,40.43823352]
[1673478556323,45.68,16.423,16.412,39.23732598]
[1673478556642,45.68,16.423,16.412,79.6755595]
[1673478556845,65.68,16.424,16.412,79.6755595]
[1673478557060,20.0,16.423,16.413,39.23732598]
[1673478557466,20.0,16.423,16.414,40.43823352]
[1673478557902,20.0,16.423,16.415,39.23732598]
[1673478558303,20.0,16.423,16.415,79.6755595]
[1673478558729,20.0,16.423,16.416,39.23732598]
[1673478559257,1.92,16.422,16.416,39.23732598]
[1673478559792,1.92,16.422,16.416,79.6755595]
[1673478560205,1.92,16.422,16.417,42.09732598]
[1673478560534,1.92,16.422,16.417,85.74222617]
[1673478560837,1.92,16.422,16.418,42.09732598]
[1673478561473,1.92,16.422,16.418,85.74222617]
[1673478561794,1.92,16.422,16.419,42.09732598]
[1673478562099,0.96,16.422,16.419,42.09732598]
[1673478562322,45.67,16.426,16.419,42.09732598]
[1673478562507,45.67,16.428,16.419,42.09732598]
[1673478562717,45.67,16.428,16.412,20.0]
[1673478562922,45.67,16.428,16.413,42.09732598]
[1673478563137,45.67,16.428,16.414,20.0]
[1673478563360,45.67,16.428,16.413,72.30501229]
[1673478563562,45.67,16.428,16.415,40.95939265]
[1673478565259,20.0,16.427,16.415,40.95939265]
[1673478565879,45.67,16.426,16.42,25.32]
[1673478566409,1.92,16.425,16.42,25.32]
[1673478570066,1.92,16.425,16.413,30.20768631]
[1673478570276,45.68,16.424,16.41,25.57]
[1673478570488,18.92,16.423,16.41,25.57]
[1673478570809,20.0,16.421,16.41,25.57]
[1673478571023,64.61,16.42,16.41,25.57]
[1673478571429,20.0,16.419,16.41,25.57]
[1673478571776,18.92,16.418,16.41,25.57]
[1673478572505,18.92,16.418,16.405,117.9515]
[1673478572506,64.62,16.418,16.405,117.9515]
[1673478572704,20.0,16.417,16.405,117.9515]
[1673478572907,1.92,16.416,16.405,117.9515]
[1673478573236,1.92,16.416,16.402,45.74]
[1673478573444,64.62,16.416,16.401,45.74]
[1673478573861,20.0,16.415,16.401,45.74]
[1673478574058,1.92,16.414,16.401,45.74]
[1673478576706,1.92,16.414,16.402,20.0]
[1673478578284,1.92,16.414,16.401,45.74]
[1673478578715,18.92,16.414,16.401,45.74]
[1673478579099,18.92,16.414,16.4,172.52]
[1673478579522,18.92,16.414,16.4,71.07]
[1673478579734,18.92,16.414,16.4,25.32]
[1673478580164,1.1617512,16.412,16.393,45.77]
[1673478580377,1.1617512,16.41,16.393,157.5398]
[1673478580605,38.1617512,16.41,16.393,157.5398]
[1673478580792,1.1617512,16.408,16.393,157.5398]
[1673478581006,1.1617512,16.406,16.393,157.5398]
[1673478581214,1.1617512,16.408,16.393,157.5398]
[1673478581412,1.1617512,16.406,16.393,157.5398]
[1673478581620,1.1617512,16.404,16.393,157.5398]
[1673478581835,1.1617512,16.402,16.393,111.7698]
[1673478582070,0.96,16.401,16.391,45.77]
[1673478582280,1.1617512,16.4,16.391,45.77]
[1673478582473,0.96,16.401,16.391,45.77]
[1673478582678,1.1617512,16.406,16.392,20.0]
[1673478582899,0.96,16.405,16.393,45.77]
[1673478583220,2.1217512,16.404,16.393,45.77]
[1673478584483,1.1617512,16.407,16.393,45.77]
[1673478585330,1.1617512,16.409,16.393,45.77]
[1673478585542,65.72,16.41,16.393,45.77]
[1673478585543,65.72,16.41,16.393,159.6507]
[1673478586922,18.92,16.409,16.393,159.6507]
[1673478587228,20.0,16.408,16.393,159.6507]
[1673478587432,18.92,16.407,16.393,113.8807]
[1673478587849,1.92,16.407,16.393,113.8807]
[1673478588486,18.92,16.407,16.393,113.8807]
[1673478591645,18.92,16.407,16.391,45.77]
[1673478591646,41.1617512,16.406,16.391,45.77]
[1673478591871,41.1617512,16.406,16.39,25.57]
[1673478591872,1.1617512,16.404,16.39,25.57]
[1673478592070,21.1617512,16.402,16.39,25.57]
[1673478592253,1.1617512,16.4,16.381,45.8]
[1673478592468,1.1617512,16.4,16.38,25.45]
[1673478592469,1.1617512,16.398,16.38,25.45]
[1673478592683,45.75,16.397,16.38,25.45]
[1673478592900,21.1617512,16.396,16.38,25.45]
[1673478593115,1.1617512,16.394,16.38,126.77]
[1673478593335,1.1617512,16.397,16.38,126.77]
[1673478593530,20.0,16.395,16.38,25.32]
[1673478593730,67.8817512,16.394,16.38,25.32]
[1673478594062,17.96,16.393,16.38,25.32]
[1673478594272,47.8917512,16.392,16.38,25.32]
[1673478594470,20.0,16.39,16.38,25.32]
[1673478594681,0.96,16.389,16.38,25.32]
[1673478594895,20.0,16.387,16.372,45.82]
[1673478595108,45.78,16.386,16.371,110.1312]
[1673478595320,18.92,16.385,16.371,110.1312]
[1673478595747,18.92,16.385,16.372,45.82]
[1673478596072,1.92,16.385,16.372,45.82]
[1673478596283,1.92,16.385,16.371,45.83]
[1673478597320,1.92,16.385,16.372,20.0]
[1673478597737,20.0,16.398,16.38,126.7]
[1673478598058,20.0,16.398,16.381,45.8]
[1673478599855,18.92,16.397,16.381,45.8]
[1673478600259,20.0,16.396,16.38,25.32]
[1673478600474,20.0,16.394,16.38,25.32]
[1673478600679,65.77,16.393,16.38,25.32]
[1673478600895,17.96,16.392,16.374,45.82]
[1673478601118,20.0,16.39,16.374,45.82]
[1673478601328,18.92,16.389,16.374,45.82]
[1673478601541,51.40822,16.388,16.37,71.19]
[1673478601756,30.0,16.385,16.37,25.36]
[1673478601945,45.79,16.384,16.364,163.0838]
[1673478602154,45.79,16.384,16.364,117.2338]
[1673478602155,20.96,16.383,16.364,117.2338]
[1673478602496,20.0,16.381,16.364,117.2338]
[1673478602708,64.72,16.38,16.364,117.2338]
[1673478603100,40.0,16.379,16.363,45.85]
[1673478603324,40.0,16.379,16.36,25.45]
[1673478603325,46.77,16.378,16.36,25.45]
[1673478603642,20.0,16.376,16.36,25.45]
[1673478603852,84.74,16.375,16.36,25.45]
[1673478604167,20.0,16.374,16.36,25.45]
[1673478604380,1.92,16.373,16.36,25.45]
[1673478604565,1.92,16.373,16.361,65.85]
[1673478604775,20.0,16.379,16.361,65.85]
[1673478605320,20.0,16.379,16.361,45.85]
[1673478605534,20.0,16.379,16.36,156.45650601]
[1673478605535,20.0,16.377,16.36,126.6]
[1673478605732,45.81,16.376,16.361,45.85]
[1673478605943,17.96,16.375,16.36,25.36]
[1673478606154,20.96,16.374,16.36,25.36]
[1673478606366,20.0,16.372,16.36,25.36]
[1673478606588,17.96,16.371,16.36,25.36]
[1673478606798,0.96,16.37,16.36,25.36]
[1673478607007,0.96,16.369,16.36,25.36]
[1673478607201,0.96,16.368,16.36,25.36]
[1673478607408,0.96,16.367,16.36,25.36]
[1673478607616,0.96,16.366,16.354,45.87]
[1673478607840,0.96,16.365,16.351,158.4228]
[1673478608051,0.96,16.364,16.351,158.4228]
[1673478608242,0.96,16.363,16.351,158.4228]
[1673478608455,0.96,16.362,16.351,158.4228]
[1673478608661,0.96,16.361,16.351,45.88]
[1673478608883,0.96,16.36,16.35,25.45]
[1673478609091,0.96,16.359,16.35,25.45]
[1673478609315,45.84,16.366,16.35,25.45]
[1673478609527,131.2516,16.383,16.36,126.6]
[1673478609843,20.0,16.382,16.361,45.85]
[1673478610042,45.8,16.38,16.361,45.85]
[1673478610460,20.0,16.377,16.361,45.85]
[1673478610671,45.81,16.376,16.361,45.85]
[1673478611190,45.81,16.376,16.36,25.32]
[1673478611401,20.0,16.375,16.36,25.32]
[1673478612039,20.0,16.375,16.361,45.85]
[1673478612258,65.8,16.381,16.361,45.85]
[1673478612663,20.0,16.381,16.362,112.2985]
[1673478612871,45.8,16.38,16.363,45.85]
[1673478613086,20.0,16.379,16.363,45.85]
[1673478613300,20.0,16.379,16.361,45.85]
[1673478613514,51.43822,16.378,16.36,25.32]
[1673478613714,44.54822,16.377,16.36,25.32]
[1673478613923,51.43822,16.376,16.36,25.32]
[1673478614143,58.92,16.375,16.36,25.32]
[1673478614344,20.0,16.373,16.36,25.32]
[1673478614555,18.92,16.372,16.36,25.32]
[1673478614775,45.81,16.378,16.36,25.32]
[1673478614991,45.81,16.378,16.361,45.85]
[1673478616353,45.8,16.38,16.362,37.0]
[1673478616569,20.0,16.388,16.37,126.77]
[1673478616758,20.0,16.39,16.371,45.83]
[1673478616964,20.0,16.39,16.38,25.34]
[1673478617180,45.77,16.393,16.38,25.34]
[1673478617382,45.38,16.4,16.38,25.34]
[1673478617383,45.75,16.397,16.38,25.34]
[1673478617812,45.75,16.397,16.38,24.84]
[1673478618023,45.77,16.393,16.38,24.84]
[1673478618233,65.75,16.399,16.381,45.8]
[1673478618443,45.74,16.402,16.39,25.28]
[1673478618663,45.74,16.402,16.382,17.0]
[1673478618664,65.74,16.403,16.383,45.79]
[1673478618869,5.62822,16.402,16.38,68.70179494]
[1673478619092,45.74,16.401,16.38,25.32]
[1673478619277,20.0,16.399,16.38,25.32]
[1673478619499,51.37822,16.398,16.38,25.32]
[1673478619698,5.62822,16.397,16.38,25.32]
[1673478619907,20.0,16.395,16.38,25.32]
[1673478620136,84.68,16.394,16.38,25.32]
[1673478620344,20.0,16.393,16.38,25.32]
[1673478620557,18.92,16.392,16.38,25.32]
[1673478621084,65.76,16.394,16.38,25.32]
[1673478622288,0.96,16.393,16.38,25.32]
[1673478623214,20.0,16.394,16.38,25.32]
[1673478624053,20.0,16.394,16.38,23.64]
[1673478624284,65.76,16.396,16.38,23.64]
[1673478624285,20.0,16.395,16.38,23.64]
[1673478624475,45.76,16.394,16.38,23.64]
[1673478624688,20.0,16.393,16.38,23.64]
[1673478625020,18.92,16.392,16.38,23.64]
[1673478625756,18.92,16.392,16.377,45.81]
[1673478626068,20.0,16.39,16.373,45.82]
[1673478626258,20.0,16.39,16.37,23.48]
[1673478626259,20.0,16.388,16.37,23.48]
[1673478626469,66.74,16.387,16.364,116.8803]
[1673478626692,66.74,16.387,16.36,47.4]
[1673478626693,23.58822,16.386,16.361,45.85]
[1673478626908,72.37822,16.385,16.361,45.85]
[1673478627124,23.58822,16.384,16.361,45.85]
[1673478627311,72.37822,16.383,16.361,45.85]
[1673478627522,17.96,16.382,16.361,45.85]
[1673478627746,20.0,16.38,16.361,45.85]
[1673478627963,89.38822,16.379,16.36,23.75]
[1673478628151,20.96,16.378,16.36,23.75]
[1673478628368,189.6,16.376,16.36,23.75]